fUST/lending_fUST_20250831
["ID","MTS","AMOUNT","RATE_DAILY","PERIOD"]
[382518146,1756655451351,-151.0,0.000176,2]
[382518147,1756655451360,-300.0,0.00017604,2]
[382518148,1756655451370,-300.0,0.00017604,2]
[382518149,1756655451380,-300.0,0.00017604,2]
[382518150,1756655451390,-300.0,0.00017604,2]
[382518151,1756655451401,-300.0,0.00017604,2]
[382518152,1756655451411,-300.0,0.00017604,2]
[382518153,1756655451420,-300.0,0.00017604,2]
[382518154,1756655451430,-300.0,0.00017604,2]
[382518156,1756655451439,-300.0,0.00017604,2]
[382518158,1756655451449,-300.0,0.00017604,2]
[382518159,1756655451459,-300.0,0.00017604,2]
[382518160,1756655451468,-300.0,0.00017604,2]
[382518161,1756655451478,-300.0,0.00017604,2]
[382518162,1756655451487,-300.0,0.00017604,2]
[382518163,1756655451496,-300.0,0.00017604,2]
[382518165,1756655451506,-600.0,0.00017604,2]
[382518166,1756655451515,-250.385,0.00017651,2]
[382518167,1756655451525,-292.92240239,0.00017659,2]
[382518168,1756655451534,-151.0,0.00017674,2]
[382518169,1756655451543,-151.0,0.00017674,2]
[382518170,1756655451552,-151.0,0.00017674,2]
[382518171,1756655451561,-151.0,0.00017674,2]
[382518172,1756655451571,-151.0,0.00017674,2]
[382518173,1756655451580,-151.0,0.00017674,2]
[382518174,1756655451589,-151.0,0.00017674,2]
[382518175,1756655451599,-151.0,0.00017674,2]
[382518176,1756655451608,-151.0,0.00017674,2]
[382518177,1756655451617,-151.0,0.00017674,2]
[382518178,1756655451627,-151.0,0.00017674,2]
[382518179,1756655451636,-4000.0,0.00017682,2]
[382518180,1756655451645,-168.0,0.00017686,2]
[382518181,1756655451655,-151.0,0.000177,2]
[382518182,1756655451808,-151.0,0.000177,2]
[382518183,1756655451817,-151.0,0.000177,2]
[382518184,1756655451827,-168.0,0.00017719,2]
[382518185,1756655451836,-448.0,0.00017752,2]
[382518186,1756655451846,-272.71618602,0.00017772,2]
[382518187,1756655451855,-4000.0,0.00017792,2]
[382518188,1756655451864,-1066.73,0.00017798,2]
[382518189,1756655451875,-480.0,0.00017798,2]
[382518190,1756655451884,-151.0,0.000178,2]
[382518191,1756655451893,-151.0,0.000178,2]
[382518192,1756655451902,-480.0,0.000178,2]
[382518193,1756655451911,-577.34,0.000178,2]
[382518194,1756655451920,-1379.29,0.000178,2]
[382518195,1756655451930,-480.0,0.000178,2]
[382518196,1756655451940,-480.0,0.000178,2]
[382518197,1756655451949,-569.68,0.000178,2]
[382518198,1756655451958,-480.0,0.000178,2]
[382518199,1756655451967,-480.0,0.000178,2]
[382518200,1756655451976,-480.0,0.000178,2]
[382518201,1756655451986,-480.0,0.000178,2]
[382518202,1756655451995,-480.0,0.000178,2]
[382518203,1756655452004,-947.07,0.000178,2]
[382518204,1756655452013,-480.0,0.000178,2]
[382518205,1756655452022,-480.0,0.000178,2]
[382518206,1756655452032,-665.81,0.000178,2]
[382518207,1756655452042,-480.0,0.000178,2]
[382518208,1756655452054,-480.0,0.000178,2]
[382518209,1756655452063,-480.0,0.000178,2]
[382518210,1756655452072,-480.0,0.000178,2]
[382518211,1756655452082,-480.0,0.000178,2]
[382518212,1756655452091,-675.14,0.000178,2]
[382518213,1756655452100,-480.0,0.000178,2]
[382518214,1756655452110,-788.09,0.000178,2]
[382518215,1756655452120,-503.7,0.000178,2]
[382518216,1756655452129,-480.0,0.000178,2]
[382518217,1756655452138,-480.0,0.000178,2]
[382518218,1756655452148,-798.96,0.000178,2]
[382518219,1756655452156,-846.39,0.000178,2]
[382518220,1756655452167,-1052.66,0.000178,2]
[382518221,1756655452176,-656.31,0.000178,2]
[382518222,1756655452185,-902.17,0.000178,2]
[382518223,1756655452195,-1025.68,0.000178,2]
[382518224,1756655452204,-2047.16,0.000178,2]
[382518225,1756655452213,-480.0,0.000178,2]
[382518226,1756655452222,-2335.31,0.000178,2]
[382518227,1756655452232,-915.44,0.000178,2]
[382518228,1756655452241,-480.0,0.000178,2]
[382518229,1756655452252,-480.0,0.00017802,2]
[382518230,1756655452262,-3205.0,0.00017802,2]
[382518231,1756655452272,-480.0,0.00017802,2]
[382518232,1756655452282,-480.0,0.00017802,2]
[382518233,1756655452291,-839.92,0.00017802,2]
[382518234,1756655452301,-1328.93,0.00017802,2]
[382518235,1756655452310,-1002.34,0.00017802,2]
[382518236,1756655452320,-699.13,0.00017802,2]
[382518237,1756655452329,-480.0,0.00017802,2]
[382518238,1756655452338,-979.92,0.00017802,2]
[382518239,1756655452348,-480.0,0.00017802,2]
[382518240,1756655452357,-995.95,0.00017802,2]
[382518241,1756655452367,-4023.72,0.00017802,2]
[382518242,1756655452376,-480.0,0.00017802,2]
[382518243,1756655452385,-480.0,0.00017802,2]
[382518244,1756655452394,-480.0,0.00017802,2]
[382518245,1756655452403,-2341.65,0.00017802,2]
[382518246,1756655452412,-3655.9,0.00017802,2]
[382518247,1756655452422,-996.42,0.00017802,2]
[382518248,1756655452431,-480.0,0.00017802,2]
[382518249,1756655452440,-500.0,0.00017802,2]
[382518250,1756655452450,-480.0,0.00017803,2]
[382518251,1756655452459,-729.84,0.00017803,2]
[382518252,1756655452469,-480.0,0.00017803,2]
[382518253,1756655452478,-1280.79,0.00017803,2]
[382518254,1756655452488,-988.75,0.00017803,2]
[382518255,1756655452497,-1316.71,0.00017803,2]
[382518256,1756655452508,-697.64,0.00017803,2]
[382518257,1756655452517,-1016.42,0.00017803,2]
[382518258,1756655452531,-480.0,0.00017803,2]
[382518260,1756655452540,-480.0,0.00017803,2]
[382518261,1756655452549,-480.0,0.00017803,2]
[382518262,1756655452559,-1765.34,0.00017803,2]
[382518263,1756655452570,-848.54,0.00017803,2]
[382518264,1756655452584,-1111.19,0.00017803,2]
[382518265,1756655452595,-1557.66,0.00017803,2]
[382518266,1756655452608,-1441.12,0.00017803,2]
[382518267,1756655452618,-1903.63,0.00017803,2]
[382518268,1756655452627,-1095.98,0.00017803,2]
[382518269,1756655452637,-480.0,0.00017803,2]
[382518270,1756655452646,-441.88,0.00017803,2]
[382518271,1756655452658,-871.77,0.00017803,2]
[382518272,1756655452670,-623.84,0.00017803,2]
[382518273,1756655452680,-734.78,0.00017803,2]
[382518274,1756655452689,-1471.31,0.00017803,2]
[382518275,1756655452699,-1746.49,0.00017803,2]
[382518276,1756655452709,-1526.3,0.00017803,2]
[382518277,1756655452718,-663.55,0.00017803,2]
[382518278,1756655452727,-151.0,0.00017803,2]
[382518279,1756655452737,-387.152177,0.00017803,2]
[382518280,1756655452747,-151.0,0.00017803,2]
[382518281,1756655452756,-493.69,0.00017803,2]
[382518282,1756655452766,-387.152177,0.00017803,2]
[382518283,1756655452775,-387.152177,0.00017803,2]
[382518284,1756655452791,-480.0,0.00017803,2]
[382518285,1756655452800,-480.0,0.00017803,2]
[382518286,1756655452810,-387.152177,0.00017803,2]
[382518287,1756655452819,-480.0,0.00017804,2]
[382518288,1756655452829,-770.2,0.00017804,2]
[382518289,1756655452839,-400.0,0.00017804,2]
[382518290,1756655452848,-688.9,0.00017804,2]
[382518291,1756655452858,-2117.5,0.00017804,2]
[382518292,1756655452867,-1086.75,0.00017804,2]
[382518293,1756655452877,-1417.09,0.00017804,2]
[382518294,1756655452887,-1583.17,0.00017804,2]
[382518295,1756655452897,-1209.45,0.00017804,2]
[382518296,1756655452906,-721.74,0.00017804,2]
[382518297,1756655452916,-690.38,0.00017804,2]
[382518298,1756655452927,-705.87,0.00017804,2]
[382518299,1756655452936,-1091.74,0.00017804,2]
[382518300,1756655452945,-721.57,0.00017804,2]
[382518301,1756655452955,-774.13,0.00017804,2]
[382518302,1756655452964,-480.0,0.00017804,2]
[382518303,1756655452973,-1491.12,0.00017804,2]
[382518304,1756655452983,-600.91,0.00017804,2]
[382518305,1756655452992,-480.0,0.00017804,2]
[382518306,1756655453001,-151.0,0.00017804,2]
[382518307,1756655453011,-480.0,0.00017804,2]
[382518308,1756655453021,-151.0,0.00017804,2]
[382518309,1756655453030,-151.0,0.00017804,2]
[382518310,1756655453040,-151.0,0.00017804,2]
[382518311,1756655453055,-151.0,0.00017804,2]
[382518312,1756655453065,-151.0,0.00017804,2]
[382518313,1756655453074,-151.343345,0.00017804,2]
[382518314,1756655453083,-151.0,0.00017804,2]
[382518315,1756655453094,-480.0,0.00017804,2]
[382518316,1756655453103,-172.580756,0.00017804,2]
[382518317,1756655453112,-172.580756,0.00017804,2]
[382518318,1756655453123,-172.580756,0.00017804,2]
[382518319,1756655453133,-172.580756,0.00017804,2]
[382518320,1756655453142,-855.97,0.00017804,2]
[382518321,1756655453152,-151.0,0.00017804,2]
[382518322,1756655453161,-717.6,0.00017804,2]
[382518323,1756655453171,-151.0,0.00017804,2]
[382518324,1756655453180,-184.038744,0.00017804,2]
[382518325,1756655453190,-151.0,0.00017804,2]
[382518326,1756655453199,-151.0,0.00017804,2]
[382518327,1756655453208,-151.0,0.00017804,2]
[382518328,1756655453217,-151.0,0.00017804,2]
[382518329,1756655453227,-151.0,0.00017804,2]
[382518330,1756655453236,-151.0,0.00017804,2]
[382518331,1756655453246,-249.71944089,0.00017805,2]
[382518332,1756655453255,-749.52,0.00017805,2]
[382518333,1756655453264,-480.0,0.00017805,2]
[382518334,1756655453274,-1504.44,0.00017805,2]
[382518335,1756655453283,-1210.43,0.00017805,2]
[382518336,1756655453293,-1671.4,0.00017805,2]
[382518337,1756655453302,-480.0,0.00017805,2]
[382518338,1756655453312,-480.0,0.00017805,2]
[382518339,1756655453322,-5842.66,0.00017805,2]
[382518340,1756655453331,-2653.16,0.00017805,2]
[382518341,1756655453340,-1214.24,0.00017805,2]
[382518342,1756655453350,-527.58,0.00017805,2]
[382518343,1756655453359,-1433.16,0.00017805,2]
[382518344,1756655453368,-9402.09,0.00017805,2]
[382518345,1756655453378,-2059.25,0.00017805,2]
[382518346,1756655453387,-7503.49,0.00017805,2]
[382518347,1756655453397,-3625.25,0.00017805,2]
[382518348,1756655453407,-7794.42,0.00017805,2]
[382518349,1756655453417,-480.0,0.00017807,2]
[382518350,1756655453427,-480.0,0.00017807,2]
[382518351,1756655453436,-480.0,0.00017807,2]
[382518352,1756655453446,-480.0,0.00017807,2]
[382518353,1756655453455,-480.0,0.00017807,2]
[382518354,1756655453465,-480.0,0.00017807,2]
[382518355,1756655453475,-480.0,0.00017807,2]
[382518356,1756655453484,-480.0,0.00017807,2]
[382518357,1756655453495,-1086.21,0.00017807,2]
[382518358,1756655453504,-480.0,0.00017807,2]
[382518359,1756655453513,-480.0,0.00017807,2]
[382518360,1756655453523,-480.0,0.00017807,2]
[382518361,1756655453532,-480.0,0.00017807,2]
[382518362,1756655453542,-804.8,0.00017807,2]
[382518363,1756655453551,-480.0,0.00017807,2]
[382518364,1756655453561,-480.0,0.00017807,2]
[382518365,1756655453571,-151.0,0.00017807,2]
[382518366,1756655453580,-480.0,0.00017807,2]
[382518367,1756655453589,-480.0,0.00017807,2]
[382518368,1756655453598,-480.0,0.00017807,2]
[382518369,1756655453607,-1588.05,0.00017807,2]
[382518370,1756655453617,-266.07364189,0.00017807,2]
[382518371,1756655453626,-480.0,0.00017807,2]
[382518372,1756655453636,-480.0,0.00017807,2]
[382518373,1756655453645,-480.0,0.00017807,2]
[382518374,1756655453654,-151.0,0.00017807,2]
[382518375,1756655453665,-598.33,0.00017807,2]
[382518376,1756655453674,-151.0,0.00017807,2]
[382518377,1756655453683,-563.05,0.00017807,2]
[382518378,1756655453692,-1083.69,0.00017807,2]
[382518379,1756655453702,-480.0,0.00017807,2]
[382518380,1756655453712,-488.12,0.00017807,2]
[382518381,1756655453721,-480.0,0.00017807,2]
[382518382,1756655453730,-480.0,0.00017807,2]
[382518383,1756655453740,-773.22,0.00017807,2]
[382518384,1756655453749,-480.0,0.00017807,2]
[382518385,1756655453758,-852.82,0.00017807,2]
[382518386,1756655453768,-480.0,0.00017807,2]
[382518387,1756655453777,-151.0,0.00017807,2]
[382518388,1756655453786,-1514.99,0.00017807,2]
[382518389,1756655453795,-480.0,0.00017807,2]
[382518390,1756655453804,-151.0,0.00017807,2]
[382518391,1756655453814,-480.0,0.00017807,2]
[382518392,1756655453823,-480.0,0.00017807,2]
[382518393,1756655453833,-588.92,0.00017807,2]
[382518394,1756655453842,-480.0,0.00017807,2]
[382518395,1756655453851,-620.92,0.00017807,2]
[382518396,1756655453861,-914.08,0.00017807,2]
[382518397,1756655453870,-480.0,0.00017807,2]
[382518398,1756655453879,-1304.2,0.00017807,2]
[382518399,1756655453889,-678.15,0.00017807,2]
[382518400,1756655453898,-480.0,0.00017807,2]
[382518401,1756655453907,-1835.45,0.00017807,2]
[382518402,1756655453917,-480.0,0.00017807,2]
[382518403,1756655453926,-480.0,0.00017807,2]
[382518404,1756655453936,-514.51,0.00017807,2]
[382518405,1756655453946,-296.00705477,0.00017807,2]
[382518406,1756655453955,-1086.22,0.00017807,2]
[382518407,1756655453964,-594.48,0.00017807,2]
[382518408,1756655453973,-480.0,0.00017807,2]
[382518409,1756655453983,-480.0,0.00017807,2]
[382518410,1756655453992,-480.0,0.00017807,2]
[382518411,1756655454002,-1262.3,0.00017807,2]
[382518412,1756655454011,-480.0,0.00017807,2]
[382518413,1756655454021,-1294.68,0.00017807,2]
[382518414,1756655454030,-555.2,0.00017807,2]
[382518415,1756655454040,-480.0,0.00017807,2]
[382518416,1756655454054,-480.0,0.00017807,2]
[382518417,1756655454063,-509.65,0.00017807,2]
[382518418,1756655454073,-1655.97,0.00017807,2]
[382518419,1756655454083,-480.0,0.00017807,2]
[382518420,1756655454092,-480.0,0.00017807,2]
[382518421,1756655454101,-627.4,0.00017807,2]
[382518422,1756655454111,-151.0,0.00017807,2]
[382518423,1756655454121,-480.0,0.00017807,2]
[382518424,1756655454130,-480.0,0.00017807,2]
[382518425,1756655454140,-1330.53,0.00017807,2]
[382518426,1756655454280,-480.0,0.00017807,2]
[382518427,1756655454290,-480.0,0.00017807,2]
[382518428,1756655454299,-480.0,0.00017807,2]
[382518429,1756655454308,-480.0,0.00017807,2]
[382518430,1756655454318,-655.6,0.00017807,2]
[382518431,1756655454327,-480.0,0.00017807,2]
[382518432,1756655454336,-480.0,0.00017807,2]
[382518433,1756655454346,-596.16,0.00017807,2]
[382518434,1756655454356,-1040.95,0.00017807,2]
[382518435,1756655454366,-151.0,0.00017807,2]
[382518436,1756655454375,-151.0,0.00017807,2]
[382518437,1756655454384,-151.0,0.00017807,2]
[382518438,1756655454393,-480.0,0.00017807,2]
[382518439,1756655454403,-480.0,0.00017807,2]
[382518440,1756655454412,-480.0,0.00017807,2]
[382518441,1756655454422,-1617.26,0.00017807,2]
[382518442,1756655454432,-1525.23,0.00017807,2]
[382518443,1756655454442,-368.80140966,0.00017807,2]
[382518444,1756655454454,-678.77,0.00017807,2]
[382518445,1756655454465,-151.55384,0.00017807,2]
[382518446,1756655454475,-480.0,0.00017807,2]
[382518447,1756655454485,-480.0,0.00017807,2]
[382518448,1756655454495,-522.01,0.00017807,2]
[382518449,1756655454504,-1519.19,0.00017807,2]
[382518450,1756655454514,-729.62,0.00017807,2]
[382518451,1756655454523,-683.79,0.00017807,2]
[382518452,1756655454532,-151.0,0.00017807,2]
[382518453,1756655454542,-742.63,0.00017807,2]
[382518454,1756655454551,-480.0,0.00017807,2]
[382518455,1756655454560,-185.876676,0.00017807,2]
[382518456,1756655454570,-185.876676,0.00017807,2]
[382518457,1756655454580,-185.876676,0.00017807,2]
[382518458,1756655454589,-185.876676,0.00017807,2]
[382518459,1756655454599,-480.0,0.00017807,2]
[382518460,1756655454609,-581.58,0.00017807,2]
[382518461,1756655454618,-480.0,0.00017807,2]
[382518462,1756655454628,-480.0,0.00017807,2]
[382518463,1756655454638,-672.04,0.00017807,2]
[382518464,1756655454647,-480.0,0.00017807,2]
[382518465,1756655454656,-167.076088,0.00017807,2]
[382518466,1756655454667,-480.0,0.00017807,2]
[382518467,1756655454676,-151.0,0.00017807,2]
[382518468,1756655454685,-274.433023,0.00017807,2]
[382518469,1756655454695,-480.0,0.00017807,2]
[382518470,1756655454704,-867.51,0.00017807,2]
[382518471,1756655454713,-268.55060938,0.00017807,2]
[382518472,1756655454722,-151.0,0.00017807,2]
[382518473,1756655454731,-480.0,0.00017807,2]
[382518474,1756655454741,-151.0,0.00017807,2]
[382518475,1756655454750,-1228.6,0.00017807,2]
[382518476,1756655454760,-480.0,0.00017807,2]
[382518477,1756655454769,-1187.48,0.00017807,2]
[382518478,1756655454778,-480.0,0.00017807,2]
[382518479,1756655454787,-480.3,0.00017807,2]
[382518480,1756655454796,-151.0,0.00017807,2]
[382518481,1756655454806,-151.0,0.00017807,2]
[382518482,1756655454815,-226.906472,0.00017807,2]
[382518483,1756655454825,-151.0,0.00017807,2]
[382518484,1756655454834,-151.0,0.00017807,2]
[382518485,1756655454843,-396.759893,0.00017807,2]
[382518486,1756655454852,-396.759893,0.00017807,2]
[382518487,1756655454862,-480.0,0.00017807,2]
[382518488,1756655454871,-396.759893,0.00017807,2]
[382518489,1756655454880,-396.759893,0.00017807,2]
[382518490,1756655454889,-480.0,0.00017807,2]
[382518491,1756655454899,-1340.66,0.00017807,2]
[382518492,1756655454908,-151.0,0.00017807,2]
[382518493,1756655454918,-164.34718,0.00017807,2]
[382518494,1756655454928,-480.0,0.00017807,2]
[382518495,1756655454937,-480.0,0.00017807,2]
[382518496,1756655454946,-987.3,0.00017807,2]
[382518497,1756655454955,-480.0,0.00017807,2]
[382518498,1756655454965,-480.0,0.00017807,2]
[382518499,1756655454974,-1737.05,0.00017807,2]
[382518500,1756655454983,-480.0,0.00017807,2]
[382518501,1756655454992,-1523.41,0.00017807,2]
[382518502,1756655455002,-812.97,0.00017807,2]
[382518503,1756655455012,-151.0,0.00017807,2]
[382518504,1756655455022,-480.0,0.00017807,2]
[382518505,1756655455031,-1305.89,0.00017807,2]
[382518506,1756655455041,-480.0,0.00017807,2]
[382518507,1756655455054,-480.0,0.00017807,2]
[382518508,1756655455064,-690.43,0.00017807,2]
[382518509,1756655455073,-1652.85,0.00017807,2]
[382518510,1756655455083,-3528.75,0.00017807,2]
[382518511,1756655455092,-940.93,0.00017807,2]
[382518512,1756655455103,-480.0,0.00017807,2]
[382518513,1756655455112,-151.0,0.00017807,2]
[382518514,1756655455122,-480.0,0.00017807,2]
[382518515,1756655455132,-5613.43,0.00017807,2]
[382518516,1756655455142,-748.33,0.00017807,2]
[382518517,1756655455151,-480.0,0.00017807,2]
[382518518,1756655455160,-575.39,0.00017807,2]
[382518519,1756655455171,-618.55,0.00017807,2]
[382518520,1756655455180,-480.0,0.00017807,2]
[382518521,1756655455190,-211.109368,0.00017807,2]
[382518522,1756655455200,-211.109368,0.00017807,2]
[382518523,1756655455210,-211.109368,0.00017807,2]
[382518524,1756655455219,-211.109368,0.00017807,2]
[382518525,1756655455228,-878.55,0.00017807,2]
[382518526,1756655455238,-1043.49,0.00017807,2]
[382518527,1756655455247,-1128.13,0.00017807,2]
[382518528,1756655455257,-819.39,0.00017807,2]
[382518529,1756655455267,-480.0,0.00017807,2]
[382518530,1756655455276,-562.11745179,0.00017807,2]
[382518531,1756655455285,-151.0,0.00017807,2]
[382518532,1756655455294,-697.78,0.00017807,2]
[382518533,1756655455304,-480.0,0.00017807,2]
[382518534,1756655455313,-480.0,0.00017807,2]
[382518535,1756655455323,-852.26,0.00017807,2]
[382518536,1756655455333,-492.68,0.00017807,2]
[382518537,1756655455343,-1000.0,0.00017807,2]
[382518538,1756655455353,-480.0,0.00017807,2]
[382518539,1756655455362,-480.0,0.00017807,2]
[382518540,1756655455372,-638.05,0.00017807,2]
[382518541,1756655455382,-2102.67,0.00017807,2]
[382518542,1756655455392,-2459.16,0.00017807,2]
[382518543,1756655455402,-480.0,0.00017811,2]
[382518544,1756655455411,-480.0,0.00017811,2]
[382518545,1756655455422,-1412.45,0.00017811,2]
[382518546,1756655455432,-789.23,0.00017811,2]
[382518547,1756655455441,-523.79,0.00017811,2]
[382518548,1756655455450,-500.0,0.00017811,2]
[382518549,1756655455460,-1572.47,0.00017811,2]
[382518550,1756655455469,-898.44,0.00017811,2]
[382518551,1756655455479,-480.0,0.00017811,2]
[382518552,1756655455488,-1531.62,0.00017811,2]
[382518553,1756655455498,-1042.08,0.00017811,2]
[382518554,1756655455508,-1490.24,0.00017811,2]
[382518555,1756655455517,-728.76,0.00017811,2]
[382518556,1756655455527,-749.8,0.00017811,2]
[382518557,1756655455537,-480.0,0.00017811,2]
[382518558,1756655455546,-480.0,0.00017811,2]
[382518559,1756655455556,-480.0,0.00017811,2]
[382518560,1756655455565,-480.0,0.00017811,2]
[382518561,1756655455575,-947.0,0.00017811,2]
[382518562,1756655455584,-480.0,0.00017811,2]
[382518563,1756655455593,-594.12225828,0.00017811,2]
[382518564,1756655455602,-480.0,0.00017811,2]
[382518565,1756655455613,-850.2,0.00017811,2]
[382518566,1756655455622,-1211.01,0.00017811,2]
[382518567,1756655455632,-480.0,0.00017811,2]
[382518568,1756655455642,-493.69,0.00017811,2]
[382518569,1756655455653,-1117.83,0.00017811,2]
[382518570,1756655455662,-740.45,0.00017811,2]
[382518571,1756655455672,-480.0,0.00017811,2]
[382518572,1756655455682,-480.0,0.00017811,2]
[382518573,1756655455692,-480.0,0.00017811,2]
[382518574,1756655455701,-480.0,0.00017811,2]
[382518575,1756655455710,-1136.59,0.00017811,2]
[382518576,1756655455720,-2003.24,0.00017811,2]
[382518577,1756655455729,-480.0,0.00017811,2]
[382518578,1756655455738,-480.0,0.00017811,2]
[382518579,1756655455747,-547.42,0.00017811,2]
[382518580,1756655455757,-529.93,0.00017811,2]
[382518581,1756655455767,-480.0,0.00017814,2]
[382518582,1756655455776,-480.0,0.00017814,2]
[382518583,1756655455785,-480.0,0.00017814,2]
[382518584,1756655455794,-480.0,0.00017814,2]
[382518585,1756655455804,-671.5,0.00017814,2]
[382518586,1756655455813,-480.0,0.00017814,2]
[382518587,1756655455823,-596.59,0.00017814,2]
[382518588,1756655455832,-480.0,0.00017814,2]
[382518589,1756655455842,-480.0,0.00017814,2]
[382518590,1756655455851,-480.0,0.00017814,2]
[382518591,1756655455862,-480.0,0.00017814,2]
[382518592,1756655455871,-480.0,0.00017814,2]
[382518593,1756655455881,-604.81,0.00017814,2]
[382518594,1756655455891,-499.04,0.00017814,2]
[382518595,1756655455900,-480.0,0.00017814,2]
[382518596,1756655455910,-644.17,0.00017814,2]
[382518597,1756655455920,-1405.54,0.00017814,2]
[382518598,1756655455930,-1370.05,0.00017814,2]
[382518599,1756655455939,-480.0,0.00017814,2]
[382518600,1756655455949,-480.0,0.00017814,2]
[382518601,1756655455958,-480.0,0.00017814,2]
[382518602,1756655455968,-671.2,0.00017814,2]
[382518603,1756655455977,-480.0,0.00017814,2]
[382518604,1756655455987,-711.19,0.00017814,2]
[382518605,1756655455996,-1375.13,0.00017814,2]
[382518606,1756655456006,-480.0,0.00017814,2]
[382518607,1756655456017,-480.0,0.00017814,2]
[382518608,1756655456026,-480.0,0.00017814,2]
[382518609,1756655456036,-505.59,0.00017814,2]
[382518610,1756655456049,-480.0,0.00017814,2]
[382518611,1756655456059,-480.0,0.00017814,2]
[382518612,1756655456069,-480.0,0.00017814,2]
[382518613,1756655456078,-480.0,0.00017814,2]
[382518614,1756655456088,-480.0,0.00017814,2]
[382518615,1756655456097,-480.0,0.00017814,2]
[382518616,1756655456106,-480.0,0.00017814,2]
[382518617,1756655456115,-513.89,0.00017814,2]
[382518618,1756655456125,-480.0,0.00017814,2]
[382518619,1756655456134,-506.02,0.00017814,2]
[382518620,1756655456143,-596.68,0.00017814,2]
[382518621,1756655456153,-533.44,0.00017814,2]
[382518622,1756655456162,-507.3,0.00017814,2]
[382518623,1756655456172,-480.0,0.00017814,2]
[382518624,1756655456181,-480.0,0.00017814,2]
[382518625,1756655456191,-480.0,0.00017814,2]
[382518626,1756655456200,-480.0,0.00017814,2]
[382518627,1756655456209,-480.0,0.00017814,2]
[382518628,1756655456219,-480.0,0.00017814,2]
[382518629,1756655456228,-766.35,0.00017814,2]
[382518630,1756655456238,-778.78,0.00017814,2]
[382518631,1756655456248,-480.0,0.00017814,2]
[382518632,1756655456257,-480.0,0.00017814,2]
[382518633,1756655456267,-151.0,0.00017814,2]
[382518634,1756655456277,-480.0,0.00017814,2]
[382518635,1756655456286,-151.0,0.00017814,2]
[382518636,1756655456296,-151.0,0.00017814,2]
[382518637,1756655456306,-480.0,0.00017814,2]
[382518638,1756655456314,-151.0,0.00017814,2]
[382518639,1756655456324,-151.0,0.00017814,2]
[382518640,1756655456333,-151.0,0.00017814,2]
[382518641,1756655456343,-480.0,0.00017814,2]
[382518642,1756655456352,-480.0,0.00017814,2]
[382518643,1756655456362,-151.0,0.00017814,2]
[382518644,1756655456371,-480.0,0.00017814,2]
[382518645,1756655456380,-151.0,0.00017814,2]
[382518646,1756655456390,-416.95114487,0.00017814,2]
[382518647,1756655456400,-480.0,0.00017814,2]
[382518648,1756655456409,-480.0,0.00017814,2]
[382518649,1756655456419,-993.12,0.00017814,2]